fUSD/lending_fUSD_20251023
["ID","MTS","AMOUNT","RATE_DAILY","PERIOD"]
[392170455,1761231032423,-195.0,0.00023042,2]
[392170456,1761231032433,-454.60481548,0.0002308,2]
[392170457,1761231032443,-335.95248103,0.000231,2]
[392170459,1761231032452,-281.47171346,0.00023114,2]
[392170460,1761231032461,-195.0,0.00023114,2]
[392170461,1761231032471,-300.0,0.00023122,2]
[392170462,1761231032480,-2500.0,0.00023123,2]
[392170463,1761231032493,-250.0,0.00023123,2]
[392170464,1761231032503,-1045.0,0.00023179,2]
[392170466,1761231032513,-318.21011197,0.00023208,2]
[392170468,1761231032522,-5176.06949757,0.000234,2]
[392170470,1761231032531,-571.96,0.00024931,2]
[392170472,1761231032541,-500.0,0.00024932,2]
[392170474,1761231032551,-1191.36,0.00025,2]
[392170475,1761231032560,-500.0,0.00025006,2]
[392170476,1761231032569,-500.0,0.00025006,2]
[392170477,1761231032579,-420.0,0.0002501,2]
[392170478,1761231032588,-420.0,0.0002501,2]
[392170479,1761231032598,-1680.0,0.00025011,2]
[392170480,1761231032608,-420.0,0.00025097,2]
[392170481,1761231032618,-1680.0,0.00025126,2]
[392170482,1761231032627,-195.0,0.00025156,2]
[392170483,1761231032637,-305.16529687,0.00025156,30]
[392170484,1761231032646,-461.489323,0.00025216,2]
[392170485,1761231032656,-500.0,0.00025216,2]
[392170486,1761231032665,-2500.0,0.00025283,2]
[392170487,1761231032674,-195.0,0.00025283,2]
[392170488,1761231032683,-300.0,0.00025283,2]
[392170489,1761231032692,-4000.0,0.00025283,2]
[392170490,1761231032702,-2500.0,0.00025371,2]
[392170491,1761231032711,-250.0,0.00025371,2]
[392170492,1761231032720,-195.0,0.00025371,2]
[392170493,1761231032729,-1191.36,0.000255,2]
[392170494,1761231032739,-1000.0,0.00025554,2]
[392170495,1761231032748,-150.0,0.00025648,2]
[392170496,1761231032757,-506.18334773,0.00025764,2]
[392170497,1761231032767,-500.0,0.000259,2]
[392170498,1761231032777,-500.0,0.000259,2]
[392170499,1761231032786,-500.0,0.000259,2]
[392170500,1761231032796,-500.0,0.000259,2]
[392170501,1761231032807,-500.0,0.000259,2]
[392170502,1761231032817,-500.0,0.000259,2]
[392170503,1761231032826,-430.68261227,0.000259,2]
[392170504,1761231032836,-500.0,0.000259,2]
[392170505,1761231032846,-500.0,0.000259,2]
[392170506,1761231032856,-608.0216493,0.00026101,2]
[392170507,1761231032873,-1000.0,0.00026448,2]
[392170508,1761231032883,-1000.0,0.00026448,2]
[392170509,1761231032892,-504.06852706,0.00026448,2]
[392170510,1761231032902,-500.0,0.00026448,2]
[392170511,1761231032913,-500.0,0.00026448,2]
[392170512,1761231032923,-571.50487862,0.00026448,2]
[392170513,1761231032933,-1359.24212434,0.00026996,2]
[392170514,1761231032942,-1500.0,0.00026996,2]
[392170515,1761231032952,-587.0,0.00027149,2]
[392170516,1761231032961,-1977.0,0.0002715,2]
[392170517,1761231032971,-163.0,0.00027241,2]
[392170518,1761231032982,-2351.0,0.00027401,2]
[392170519,1761231032992,-480.31,0.00027423,14]
[392170520,1761231033002,-2000.0,0.00027544,5]
[392170521,1761231033012,-480.31,0.00027697,14]
[392170522,1761231033022,-480.31,0.00027971,14]
[392170523,1761231033031,-13489.79,0.00028045,10]
[392170524,1761231033041,-501.53031789,0.00028062,5]
[392170525,1761231033051,-500.0,0.00028092,5]
[392170526,1761231033061,-480.31,0.00028245,14]
[392170527,1761231033074,-480.34,0.00028519,14]
[392170528,1761231033084,-823.0,0.0002947,2]
[392170529,1761231033095,-151.0,0.00029852,2]
[392170530,1761231033104,-151.0,0.00029852,2]
[392170531,1761231033114,-151.0,0.00029852,2]
[392170532,1761231033124,-151.0,0.00029852,2]
[392170533,1761231033133,-151.0,0.00029852,2]
[392170534,1761231033143,-151.0,0.00029852,2]
[392170535,1761231033153,-151.0,0.00029852,2]
[392170536,1761231033164,-151.0,0.00029852,2]
[392170537,1761231033174,-151.0,0.00029852,2]
[392170538,1761231033183,-151.0,0.00029852,2]
[392170539,1761231033192,-151.0,0.00029852,2]
[392170540,1761231033202,-151.0,0.00029852,2]
[392170541,1761231033211,-151.0,0.00029852,2]
[392170542,1761231033220,-151.0,0.00029852,2]
[392170543,1761231033231,-151.0,0.00029852,2]
[392170544,1761231033241,-224.56445213,0.00029852,2]
[392170545,1761231033250,-151.0,0.00029852,2]
[392170546,1761231033259,-151.0,0.00029852,2]
[392170547,1761231033273,-151.0,0.00029852,2]
[392170548,1761231033283,-151.0,0.00029852,2]
[392170549,1761231033292,-151.0,0.00029852,2]
[392170550,1761231033302,-151.0,0.00029852,2]
[392170551,1761231033313,-151.0,0.00029852,2]
[392170552,1761231033323,-151.0,0.00029852,2]
[392170553,1761231033333,-151.0,0.00029852,2]
[392170554,1761231033342,-151.0,0.00029852,2]
[392170555,1761231033352,-151.0,0.00029852,2]
[392170556,1761231033362,-151.0,0.00029852,2]
[392170557,1761231033372,-151.0,0.00029852,2]
[392170558,1761231033382,-151.0,0.00029852,2]
[392170559,1761231033391,-151.0,0.00029852,2]
[392170560,1761231033401,-151.0,0.00029852,2]
[392170561,1761231033411,-151.0,0.00029852,2]
[392170562,1761231033420,-151.0,0.00029852,2]
[392170563,1761231033430,-3292.0,0.00029882,2]
[392170564,1761231033440,-1180.498,0.00029943,24]
[392170565,1761231033450,-151.0,0.00030028,2]
[392170566,1761231033464,-151.0,0.00030028,2]
[392170567,1761231033473,-151.0,0.00030028,2]
[392170568,1761231033483,-298.47122386,0.00030028,2]
[392170569,1761231033493,-340.59157314,0.00030445,2]
[392170570,1761231033503,-246.05156352,0.00030884,120]
[392170571,1761231033513,-158.0,0.00031,120]
[392170572,1761231033522,-176.0,0.00031,120]
[392170573,1761231033533,-500.0,0.00031065,2]
[392170574,1761231033542,-3006.5,0.00031643,2]
[392170575,1761231033552,-500.0,0.00031931,3]
[392170576,1761231033561,-345.0,0.0003199,3]
[392170577,1761231033571,-533.15473545,0.00032479,3]
[392170578,1761231033581,-4609.0,0.00032588,3]
[392170579,1761231033591,-300.68,0.00032606,2]
[392170580,1761231033601,-150.0,0.000332,2]
[392170581,1761231033611,-1676.37,0.00033237,7]
[392170582,1761231033621,-170.14,0.00033877,2]
[392170583,1761231033630,-1000.0,0.00034064,2]
[392170584,1761231033642,-246.05156352,0.00034536,120]
[392170585,1761231033654,-7659.7,0.00034649,2]
[392170586,1761231033663,-212.6,0.00034649,2]
[392170587,1761231033673,-168.0,0.00035167,2]
[392170588,1761231033684,-6453.0,0.00035538,3]
[392170589,1761231033696,-816.14,0.00035642,2]
[392170590,1761231033708,-168.0,0.00035914,2]
[392170591,1761231033718,-166.66,0.00035974,30]
[392170592,1761231033729,-168.0,0.00036145,7]
[392170593,1761231033739,-168.0,0.00036481,120]
[392170594,1761231033749,-150.0,0.00036523,30]
[392170595,1761231033759,-168.0,0.00036653,2]
[392170596,1761231033769,-166.66,0.00036732,30]
[392170597,1761231033779,-500.0,0.00036767,2]
[392170598,1761231033788,-816.14,0.00036978,2]
[392170599,1761231033798,-2810.0,0.00037,5]
[392170600,1761231033809,-500.0,0.00037151,2]
[392170601,1761231033819,-500.0,0.00037233,2]
[392170602,1761231033829,-500.0,0.0003731,2]
[392170603,1761231033840,-168.0,0.0003741,7]
[392170604,1761231033849,-168.0,0.00037443,7]
[392170605,1761231033860,-166.66,0.00037489,30]
[392170606,1761231033875,-666.0,0.00037868,3]
[392170607,1761231033886,-2617.46,0.00037868,2]
[392170608,1761231033896,-2006.01,0.00037868,2]
[392170609,1761231033907,-3322.28,0.00037868,2]
[392170610,1761231033917,-1587.55,0.00037868,2]
[392170611,1761231033926,-200.0,0.00038,120]
[392170612,1761231033936,-500.0,0.00038027,2]
[392170613,1761231033950,-8356.4704338,0.00038146,2]
[392170614,1761231033959,-246.05156352,0.0003819,120]
[392170615,1761231033970,-166.66,0.00038246,30]
[392170616,1761231033980,-816.14,0.00038315,2]
[392170617,1761231033990,-1000.0,0.00038322,2]
[392170618,1761231033999,-168.0,0.00038467,2]
[392170619,1761231034009,-168.0,0.00038515,7]
[392170620,1761231034019,-168.0,0.00038715,2]
[392170621,1761231034029,-168.0,0.0003872,2]
[392170622,1761231034039,-168.0,0.00038741,7]
[392170623,1761231034056,-2661.0,0.00038756,5]
[392170624,1761231034067,-168.0,0.00038764,7]
[392170625,1761231034077,-8356.47043376,0.00038898,2]
[392170626,1761231034087,-166.66,0.00039004,30]
[392170627,1761231034097,-168.0,0.00039068,2]
[392170628,1761231034106,-168.0,0.00039221,2]
[392170629,1761231034273,-168.0,0.00039245,120]
[392170630,1761231034284,-168.0,0.00039273,7]
[392170631,1761231034294,-168.0,0.00039622,120]
[392170632,1761231034304,-736.89584246,0.00039623,5]
[392170633,1761231034314,-736.89584246,0.00039623,5]
[392170634,1761231034324,-8356.47043376,0.00039649,2]
[392170635,1761231034334,-816.14,0.00039652,2]
[392170636,1761231034344,-168.0,0.00039679,7]
[392170637,1761231034354,-166.66,0.00039761,30]
[392170638,1761231034364,-200.0,0.0004,120]
[392170639,1761231034374,-2499.98,0.0004,120]
[392170640,1761231034387,-600.0,0.0004,30]
[392170641,1761231034397,-168.0,0.00040086,2]
[392170642,1761231034407,-8356.47043376,0.00040401,15]
[392170643,1761231034417,-150.00000001,0.00040488,4]
[392170644,1761231034431,-150.0,0.00040488,4]
[392170645,1761231034448,-150.0,0.00040488,4]
[392170646,1761231034458,-150.0,0.00040488,4]
[392170647,1761231034468,-150.0,0.00040488,4]
[392170648,1761231034478,-150.0,0.00040488,4]
[392170649,1761231034487,-150.0,0.00040488,4]
[392170650,1761231034497,-150.0,0.00040488,4]
[392170651,1761231034507,-150.0,0.00040488,4]
[392170652,1761231034516,-150.0,0.00040488,4]
[392170653,1761231034527,-168.0,0.00040579,120]
[392170654,1761231034537,-868.23597902,0.00040629,120]
[392170655,1761231034546,-816.14,0.00040988,2]
[392170656,1761231034557,-1000.0,0.00041096,15]
[392170657,1761231034567,-1000.0,0.00041096,15]
[392170658,1761231034577,-1000.0,0.00041096,15]
[392170659,1761231034587,-1000.0,0.00041096,15]
[392170660,1761231034596,-254.0,0.00041096,15]
[392170661,1761231034606,-322.0,0.000411,2]
[392170662,1761231034616,-8356.47043376,0.00041152,15]
[392170663,1761231034626,-222.22,0.0004121,14]
[392170664,1761231034636,-150.0,0.00041754,30]
[392170665,1761231034645,-150.0,0.00041757,30]
[392170666,1761231034657,-246.05156352,0.00041842,120]
[392170667,1761231034667,-250.0,0.00041871,7]
[392170668,1761231034676,-6708.75418567,0.00041904,15]
[392170669,1761231034700,-1647.71624809,0.00041904,15]
[392170670,1761231034710,-198.83,0.0004196,14]
[392170671,1761231034719,-500.0,0.0004196,10]
[392170672,1761231034729,-1000.0,0.00042579,2]
[392170673,1761231034740,-2500.0,0.00042606,2]
[392170674,1761231034750,-8356.47043376,0.00042655,15]
[392170675,1761231034760,-24786.07305667,0.00042706,30]
[392170676,1761231034776,-5213.92694333,0.00042706,30]
[392170677,1761231034786,-500.0,0.00042721,120]
[392170678,1761231034798,-678.5,0.00043,120]
[392170679,1761231034809,-868.23597902,0.00043067,120]
[392170680,1761231034818,-500.0,0.00043108,10]
[392170681,1761231034828,-501.50763164,0.00043108,2]
[392170682,1761231034837,-500.0,0.00043108,10]
[392170683,1761231034847,-500.0,0.00043108,10]
[392170684,1761231034858,-500.0,0.00043108,10]
[392170685,1761231034873,-500.0,0.00043108,10]
[392170686,1761231034884,-200.0,0.00043108,10]
[392170687,1761231034893,-500.53836053,0.00043108,10]
[392170688,1761231034903,-165.03398142,0.00043108,10]
[392170689,1761231034915,-279.13122704,0.00043108,10]
[392170690,1761231034926,-500.0,0.00043108,10]
[392170691,1761231034936,-500.0,0.00043108,10]
[392170692,1761231034946,-500.0,0.00043108,10]
[392170693,1761231034955,-500.0,0.00043108,10]
[392170694,1761231034965,-159.983392,0.00043108,10]
[392170695,1761231034975,-500.99082641,0.00043108,10]
[392170696,1761231034984,-500.0,0.00043108,10]
[392170697,1761231034994,-501.15493249,0.00043108,10]
[392170698,1761231035003,-161.7246526,0.00043108,10]
[392170699,1761231035014,-504.56261558,0.00043108,10]
[392170700,1761231035026,-500.0,0.00043108,10]
[392170701,1761231035036,-160.17732397,0.00043108,10]
[392170702,1761231035045,-500.0,0.00043108,10]
[392170703,1761231035055,-137.35991911,0.00043108,10]
[392170704,1761231035070,-362.64008089,0.00043108,10]
[392170705,1761231035079,-500.0,0.00043108,10]
[392170706,1761231035089,-502.52024895,0.00043233,10]
[392170707,1761231035099,-160.177328,0.0004329,10]
[392170708,1761231035109,-96.40083371,0.0004329,10]
[392170709,1761231038258,-332.22111842,0.00023122,2]
[392170725,1761231040175,-167.77888158,0.00023122,2]
[392170726,1761231040185,-500.0,0.00023122,2]
[392170727,1761231040195,-500.0,0.00023122,2]
[392170728,1761231040205,-500.0,0.00023122,2]
[392170729,1761231040215,-500.0,0.00023122,2]
[392170730,1761231040224,-500.0,0.00023122,2]
[392170731,1761231040234,-500.0,0.00023122,2]
[392170732,1761231040243,-500.0,0.00023122,2]
[392170733,1761231040254,-598.63785966,0.00023122,2]
[392170734,1761231040264,-500.0,0.00023122,2]
[392170735,1761231040274,-501.36065041,0.000259,2]
[392170736,1761231040284,-158.05260835,0.000259,2]
[392170737,1761231040300,-314.23423271,0.000259,2]
[392170738,1761231040311,-160.1767284,0.000259,2]
[392170739,1761231040320,-173.75468554,0.00028044,2]
[392170740,1761231040331,-500.0,0.00028044,2]
[392170741,1761231040340,-262.15431483,0.00028044,2]
[392170742,1761231040350,-244.45545297,0.00028044,2]
[392170743,1761231040362,-15.11018023,0.00028044,2]
[392170744,1761231040372,-336.57816413,0.00028044,2]
[392170745,1761231040384,-662.80496138,0.00042706,30]
[392170746,1761231040396,-3843.5114348,0.00042706,30]
[392170747,1761231040408,-2087.93527881,0.00042706,30]
[392170748,1761231040430,-0.13194135,0.00042706,30]
[392170749,1761231040442,-3436.90964561,0.00042706,30]
[392170750,1761231040467,-764.0,0.00042706,30]
[392170759,1761231040890,-741.12945468,0.00042706,30]
[392170760,1761231040899,-1093.47054532,0.00042931,2]
[392170777,1761231043185,-10562.94945468,0.00042931,2]
[392170778,1761231043195,-504.27470638,0.00043108,10]
[392170779,1761231043205,-502.44208721,0.00043108,10]
[392170780,1761231043215,-63.77649428,0.0004329,10]
[392170781,1761231043247,-501.16569824,0.0004329,10]
[392170782,1761231043257,-160.19052345,0.0004329,10]
[392170784,1761231043267,-8356.47043376,0.00043407,15]
[392170785,1761231043276,-449.0,0.00043644,2]
[392170786,1761231043285,-1000.0,0.00043656,10]
[392170787,1761231043295,-151.3752578,0.00043656,10]
[392170788,1761231043305,-502.50932166,0.00043656,10]
[392170789,1761231043314,-159.05500216,0.00043656,10]
[392170790,1761231043324,-1000.0,0.00043656,10]
[392170791,1761231043334,-506.96976491,0.00043656,10]
[392170792,1761231043343,-429.29336268,0.00043656,10]
[392170793,1761231043352,-500.0,0.00043656,10]
[392170794,1761231043362,-516.00653523,0.00043656,10]
[392170795,1761231043372,-826.87219735,0.00043751,2]
[392170796,1761231043382,-400.0,0.00043793,10]
[392170797,1761231043391,-500.0,0.00043835,120]
[392170798,1761231043400,-500.0,0.00043835,120]
[392170799,1761231043410,-500.0,0.00043835,120]
[392170800,1761231043420,-500.0,0.00043835,120]
[392170801,1761231043429,-500.0,0.00043835,120]
[392170802,1761231043439,-500.0,0.00043835,120]
[392170803,1761231043450,-500.0,0.00043835,2]
[392170804,1761231043459,-500.0,0.00043835,2]
[392170805,1761231043469,-606.05135025,0.00043835,120]
[392170806,1761231043479,-500.0,0.00043835,120]
[392170807,1761231043488,-500.0,0.00043835,120]
[392170808,1761231043498,-500.0,0.00043835,120]
[392170809,1761231043507,-500.0,0.00043835,120]
[392170810,1761231043517,-625.19399842,0.00043835,120]
[392170811,1761231043526,-500.0,0.00043835,120]
[392170812,1761231043536,-500.0,0.00043835,120]
[392170813,1761231043546,-441.60473283,0.00043835,120]
[392170814,1761231043555,-500.0,0.00043835,120]
[392170815,1761231043564,-500.0,0.00043835,12]
[392170816,1761231043575,-500.0,0.00043835,120]
[392170817,1761231043585,-500.0,0.00043835,120]
[392170819,1761231043595,-500.0,0.00043835,120]
[392170821,1761231043604,-500.0,0.00043835,120]
[392170823,1761231043613,-323.57078136,0.00043835,120]
[392170825,1761231043623,-500.0,0.00043835,120]
[392170826,1761231043632,-500.0,0.00043835,120]
[392170827,1761231043642,-500.0,0.00043835,120]
[392170828,1761231043653,-500.0,0.00043835,120]
[392170829,1761231043662,-500.0,0.00043835,120]
[392170830,1761231043670,-500.0,0.00043835,120]
[392170831,1761231043680,-500.0,0.00043835,120]
[392170832,1761231043689,-500.0,0.00043835,120]
[392170833,1761231043698,-500.0,0.00043835,120]
[392170834,1761231043707,-442.25565917,0.00043835,120]
[392170835,1761231043716,-500.0,0.00043835,120]
[392170836,1761231043730,-500.0,0.00043835,120]
[392170837,1761231043739,-500.0,0.00043835,120]
[392170838,1761231043748,-500.0,0.00043835,120]
[392170839,1761231043757,-500.0,0.00043835,120]
[392170840,1761231043766,-500.0,0.00043835,120]
[392170841,1761231043776,-500.0,0.00043835,120]
[392170842,1761231043785,-500.0,0.00043835,120]
[392170843,1761231043795,-500.0,0.00043835,120]
[392170844,1761231043804,-500.0,0.00043835,120]
[392170845,1761231043816,-500.0,0.00043835,120]
[392170846,1761231043825,-500.0,0.00043835,120]
[392170847,1761231043835,-500.0,0.00043835,120]
[392170848,1761231043844,-500.0,0.00043835,120]
[392170849,1761231043854,-500.0,0.00043835,120]
[392170850,1761231043863,-500.0,0.00043835,60]
[392170851,1761231043877,-500.0,0.00043835,120]
[392170853,1761231043886,-500.0,0.00043835,120]
[392170854,1761231043895,-511.90746794,0.00043835,120]
[392170855,1761231043904,-500.0,0.00043835,120]
[392170856,1761231043916,-500.0,0.00043835,120]
[392170857,1761231043926,-251.22608521,0.00043835,120]
[392170858,1761231043936,-200.72571763,0.00043835,120]
[392170859,1761231043947,-500.0,0.00043998,120]
[392170860,1761231043956,-547.1614348,0.00043998,120]
[392170861,1761231043966,-500.15305588,0.00043998,2]
[392170862,1761231043976,-500.0,0.00043998,120]
[392170863,1761231043988,-500.0,0.00043998,120]
[392170864,1761231043999,-500.0,0.00043998,120]
[392170865,1761231044008,-505.18,0.00043998,120]
[392170866,1761231044021,-500.0,0.00043998,120]
[392170867,1761231044032,-603.64,0.00043998,120]
[392170868,1761231044042,-551.47,0.00043998,120]
[392170869,1761231044051,-491.59924571,0.00043998,120]
[392170870,1761231044061,-500.0,0.00043999,120]
[392170871,1761231044071,-500.0,0.00043999,120]
[392170872,1761231044083,-500.0,0.00043999,120]
[392170873,1761231044092,-529.36437564,0.00043999,120]
[392170874,1761231044102,-500.0,0.00043999,120]
[392170875,1761231044111,-500.0,0.00043999,120]
[392170876,1761231044120,-581.54,0.00043999,120]
[392170877,1761231044129,-500.0,0.00043999,120]
[392170878,1761231044139,-500.0,0.00043999,120]
[392170880,1761231044149,-563.74,0.00043999,12]
[392170881,1761231044158,-826.87219735,0.00044099,2]
[392170882,1761231044168,-8356.47043376,0.00044158,15]
[392170883,1761231044178,-481.0,0.00044184,30]
[392170884,1761231044187,-826.87219735,0.0004419,2]
[392170885,1761231044197,-504.09803801,0.00044204,10]
[392170886,1761231044208,-500.0,0.00044219,2]
[392170887,1761231044217,-3006.5,0.000443,2]
[392170888,1761231044227,-500.0,0.00044356,2]
[392170889,1761231044237,-600.0,0.00044478,10]
[392170890,1761231044247,-826.87219735,0.00044526,2]
[392170891,1761231044256,-2286.61219,0.0004455,23]
[392170892,1761231044266,-481.0,0.00044639,30]
[392170893,1761231044275,-153.32488337,0.00044671,28]
[392170894,1761231044285,-153.32488331,0.00044707,28]
[392170895,1761231044295,-1425.0,0.00044727,2]
[392170896,1761231044305,-153.32488331,0.00044742,28]
[392170897,1761231044315,-500.0,0.00044749,120]
[392170898,1761231044324,-15000.0,0.0004475,120]
[392170899,1761231044334,-300.27351549,0.0004475,120]
[392170900,1761231044344,-423.81916869,0.0004475,120]
[392170901,1761231044354,-302.20670575,0.0004475,120]
[392170902,1761231044363,-150.67640544,0.0004475,120]
[392170903,1761231044373,-300.77422877,0.0004475,120]
[392170904,1761231044382,-1000.0,0.00044755,14]
[392170905,1761231044392,-1425.0,0.00044763,2]
[392170906,1761231044402,-500.0,0.00044767,30]
[392170907,1761231044411,-300.0,0.00044771,14]
[392170908,1761231044421,-153.32488331,0.00044778,28]
[392170909,1761231044431,-5589.19725143,0.00044784,15]
[392170910,1761231044440,-796.95719152,0.00044793,17]
[392170911,1761231044449,-164.43404365,0.00044793,15]
[392170912,1761231044458,-5000.0,0.000448,120]
[392170913,1761231044468,-5000.0,0.000448,120]
[392170914,1761231044477,-5000.0,0.000448,120]
[392170915,1761231044486,-1000.0,0.00044809,14]
[392170916,1761231044495,-1000.0,0.00044812,14]
[392170917,1761231044505,-153.32488331,0.00044813,28]
[392170919,1761231044515,-5551.98249908,0.00044848,3]
[392170920,1761231044525,-153.32488331,0.00044849,28]
[392170921,1761231044535,-1425.0,0.00044851,2]
[392170922,1761231044544,-164.43404363,0.00044862,15]
[392170923,1761231044554,-150.0,0.00044863,14]
[392170924,1761231044564,-5551.98249908,0.00044878,3]
[392170925,1761231044573,-44415.8599926,0.0004488,3]
[392170926,1761231044583,-153.32488331,0.00044884,28]
[392170927,1761231044591,-11103.9649982,0.00044888,3]
[392170928,1761231044600,-5551.98249908,0.00044889,3]
[392170929,1761231044609,-5171.02961405,0.0004489,3]
[392170930,1761231044696,-380.95288503,0.0004489,3]
[392170931,1761231044706,-5551.98249908,0.0004489,3]
[392170932,1761231044716,-1228.0,0.00044893,7]
[392170933,1761231044726,-818.0,0.00044898,2]
[392170934,1761231044736,-226.55529463,0.00044898,2]
[392170935,1761231044747,-1825.44470537,0.00044898,2]
[392170936,1761231044757,-1442.991,0.00044898,2]
[392170937,1761231044768,-3486.0,0.00044898,2]
[392170938,1761231044778,-4538.706,0.00044898,2]
[392170939,1761231044788,-6451.0,0.00044898,2]
[392170940,1761231044799,-557.0,0.00044898,2]
[392170941,1761231044808,-548.9312,0.00044899,120]
[392170942,1761231044818,-2100.0,0.00044899,30]
[392170943,1761231044828,-500.0,0.00044899,120]
[392170944,1761231044838,-211.16916354,0.00044899,120]
[392170945,1761231044848,-500.0,0.00044899,120]
[392170946,1761231044858,-500.0,0.00044899,120]
[392170947,1761231044870,-500.0,0.00044899,120]
[392170948,1761231044881,-500.0,0.00044899,120]
[392170949,1761231044891,-502.2882025,0.00044899,120]
[392170950,1761231044900,-448.18,0.00044899,120]
[392170951,1761231044910,-209.8242565,0.00044899,120]
[392170952,1761231044920,-500.0,0.00044899,120]
[392170953,1761231044930,-500.0,0.00044899,120]
[392170954,1761231044939,-500.0,0.00044899,120]
[392170955,1761231044949,-500.0,0.00044899,120]
[392170956,1761231044958,-500.0,0.00044899,120]
[392170957,1761231044968,-500.0,0.00044899,120]
[392170958,1761231044980,-500.0,0.00044899,120]
[392170959,1761231044989,-500.0,0.00044899,120]
[392170960,1761231044999,-500.0,0.00044899,120]
[392170961,1761231045009,-500.0,0.00044899,120]
[392170962,1761231045019,-18996.3662,0.000449,2]
[392170963,1761231045029,-1000.0,0.000449,2]
[392170965,1761231045038,-208.08191861,0.0004491,2]
[392170966,1761231045048,-638.0220699,0.0004491,2]
[392170967,1761231045058,-8356.47043376,0.0004491,15]
[392170968,1761231045068,-153.32488331,0.0004492,28]
[392170969,1761231045079,-164.43404363,0.0004493,15]
[392170970,1761231045088,-208.0819186,0.0004494,2]
[392170971,1761231045098,-638.0220699,0.0004494,2]
[392170972,1761231045108,-5551.98249908,0.0004496,3]
[392170973,1761231045118,-1311.12,0.0004497,120]
[392170974,1761231045128,-208.0819186,0.0004497,2]
[392170975,1761231045138,-638.0220699,0.0004497,2]
[392170976,1761231045147,-5551.98249908,0.0004497,3]
[392170977,1761231045157,-7362.49486253,0.00044976,3]
[392170978,1761231045170,-1211.2,0.00044976,3]
[392170980,1761231045472,-38872.46870764,0.00044976,3]
[392170982,1761231045546,-2521.67892153,0.00044976,3]
[392170983,1761231045556,-658.26869938,0.00044976,3]
[392170984,1761231045566,-5551.98249908,0.00044979,3]
[392170985,1761231045577,-27759.9124954,0.0004498,3]
[392170986,1761231045587,-658.26869938,0.0004498,3]
[392170987,1761231045597,-33311.8949945,0.0004498,3]
[392170988,1761231045607,-2633.07479752,0.0004498,3]
[392170989,1761231045618,-500.0,0.00044985,120]
[392170990,1761231045628,-500.0,0.00044985,120]
[392170991,1761231045638,-1974.80609814,0.00044986,3]
[392170992,1761231045648,-150.0,0.00044986,30]
[392170993,1761231045658,-500.0,0.00044989,120]
[392170994,1761231045668,-500.0,0.00044989,120]
[392170995,1761231045678,-500.0,0.00044989,120]
[392170996,1761231045689,-500.0,0.00044989,120]
[392170997,1761231045699,-1316.53739876,0.0004499,3]
[392170998,1761231045708,-2633.07479752,0.0004499,3]
[392170999,1761231045718,-166.24922999,0.0004499,7]
[392171000,1761231045727,-300.34,0.00044995,120]
[392171001,1761231045738,-500.0,0.00044995,120]
[392171002,1761231045749,-151.1897857,0.00044996,2]
[392171003,1761231045760,-104044.6740966,0.00044996,2]
[392171004,1761231045770,-10741.4980756,0.00044996,2]
[392171005,1761231045780,-3298.1664209,0.00044996,2]
[392171006,1761231045791,-2952.0464894,0.00044996,2]
[392171007,1761231045800,-151.0,0.00044996,120]
[392171008,1761231045810,-151.0,0.00044996,120]
[392171010,1761231045819,-151.0,0.00044996,120]
[392171011,1761231045829,-500.0,0.00044999,120]